[Event "Late-Titled-Tuesday-Blitz-May-14-2024"]
[Site "Chess.com"]
[Date "2024.05.14"]
[Round "10"]
[White "kingofthenil"]
[Black "Magicmaster17"]
[Result "1/2-1/2"]
[WhiteElo "2887"]
[BlackElo "2894"]
[TimeControl "180+1"]
[EndTime "15:53:42 PDT"]
[Termination "Game drawn by agreement"]

1. d4 {[%clk 0:03:00.9]} 1... Nf6 {[%clk 0:02:59.5]} 2. c4 {[%clk 0:03:00.5]}
2... e6 {[%clk 0:03:00.1]} 3. Nf3 {[%clk 0:03:00.2]} 3... d5 {[%clk 0:03:00.2]}
4. g3 {[%clk 0:02:58.2]} 4... Bb4+ {[%clk 0:02:59.4]} 5. Nbd2 {[%clk 0:02:58]}
5... O-O {[%clk 0:02:58]} 6. Qc2 {[%clk 0:02:57.7]} 6... c5 {[%clk 0:02:58.3]}
7. a3 {[%clk 0:02:56.7]} 7... Bxd2+ {[%clk 0:02:57.3]} 8. Qxd2 {[%clk
0:02:56.4]} 8... cxd4 {[%clk 0:02:54.2]} 9. cxd5 {[%clk 0:02:55.6]} 9... e5
{[%clk 0:02:21.9]} 10. Nxe5 {[%clk 0:02:51.7]} 10... Qxd5 {[%clk 0:02:22]} 11.
Nf3 {[%clk 0:02:52.2]} 11... Nc6 {[%clk 0:02:17.2]} 12. Bg2 {[%clk 0:02:52.3]}
12... Bf5 {[%clk 0:02:16.6]} 13. O-O {[%clk 0:02:51.6]} 13... Be4 {[%clk
0:02:16.5]} 14. b4 {[%clk 0:02:49.4]} 14... Ne5 {[%clk 0:02:07.7]} 15. Bb2
{[%clk 0:02:39.9]} 15... Bxf3 {[%clk 0:01:50.3]} 16. exf3 {[%clk 0:02:38]} 16...
Nxf3+ {[%clk 0:01:48]} 17. Bxf3 {[%clk 0:02:36.9]} 17... Qxf3 {[%clk 0:01:48.9]}
18. Bxd4 {[%clk 0:02:26.6]} 18... Rfd8 {[%clk 0:01:42.7]} 19. Rfd1 {[%clk
0:02:10.8]} 19... Ng4 {[%clk 0:01:39]} 20. h3 {[%clk 0:01:55]} 20... Rd6 {[%clk
0:01:26.6]} 21. Qf4 {[%clk 0:01:49.2]} 21... Qxf4 {[%clk 0:01:26.3]} 22. gxf4
{[%clk 0:01:49.3]} 22... Nf6 {[%clk 0:01:21.3]} 23. Bxa7 {[%clk 0:01:18.1]}
23... Ra6 {[%clk 0:01:13]} 24. Bc5 {[%clk 0:01:07.1]} 24... h6 {[%clk
0:01:04.6]} 25. Rd3 {[%clk 0:01:02.2]} 25... Nh5 {[%clk 0:01:04]} 26. Be3 {[%clk
0:01:01.2]} 26... Rf6 {[%clk 0:01:00.4]} 27. Rd4 {[%clk 0:00:57.1]} 27... Rfa6
{[%clk 0:00:57.9]} 28. b5 {[%clk 0:00:49.7]} 28... Ra5 {[%clk 0:00:55.2]} 29. a4
{[%clk 0:00:48.9]} 29... Rxb5 {[%clk 0:00:54.6]} 30. axb5 {[%clk 0:00:47]} 30...
Rxa1+ {[%clk 0:00:54.8]} 31. Kg2 {[%clk 0:00:47.7]} 31... Rb1 {[%clk 0:00:54.1]}
32. b6 {[%clk 0:00:45.5]} 32... Nf6 {[%clk 0:00:53]} 33. Rd8+ {[%clk 0:00:44.8]}
33... Kh7 {[%clk 0:00:52.3]} 34. Rb8 {[%clk 0:00:45.7]} 34... Nd5 {[%clk
0:00:52.2]} 35. Rxb7 {[%clk 0:00:45.7]} 35... Kg6 {[%clk 0:00:52.1]} 36. Rd7
{[%clk 0:00:43.5]} 36... Nxe3+ {[%clk 0:00:49]} 37. fxe3 {[%clk 0:00:41.4]}
37... Rxb6 {[%clk 0:00:49.9]} 38. Kf3 {[%clk 0:00:35]} 38... f5 {[%clk
0:00:49.7]} 39. Rd3 {[%clk 0:00:27.6]} 39... Kf6 {[%clk 0:00:49.1]} 40. e4
{[%clk 0:00:26.4]} 40... fxe4+ {[%clk 0:00:47.6]} 41. Kxe4 {[%clk 0:00:26.9]}
41... g5 {[%clk 0:00:47.5]} 42. fxg5+ {[%clk 0:00:26.7]} 42... hxg5 {[%clk
0:00:46.2]} 43. Kf3 {[%clk 0:00:25.6]} 43... Kg6 {[%clk 0:00:43.2]} 1/2-1/2

[Event "Late-Titled-Tuesday-Blitz-May-14-2024"]
[Site "Chess.com"]
[Date "2024.05.14"]
[Round "10"]
[White "RespectfulDaveOnYouTube"]
[Black "MKlose11"]
[Result "0-1"]
[WhiteElo "2525"]
[BlackElo "2632"]
[TimeControl "180+1"]
[EndTime "15:53:47 PDT"]
[Termination "MKlose11 won by resignation"]

1. Nf3 {[%clk 0:02:59.1]} 1... Nf6 {[%clk 0:02:56.7]} 2. Nc3 {[%clk 0:02:53.5]}
2... c5 {[%clk 0:02:56.7]} 3. e4 {[%clk 0:02:53.1]} 3... d6 {[%clk 0:02:57]} 4.
d4 {[%clk 0:02:49.4]} 4... cxd4 {[%clk 0:02:57.9]} 5. Nxd4 {[%clk 0:02:49]} 5...
Nc6 {[%clk 0:02:58.6]} 6. Bg5 {[%clk 0:02:44]} 6... Qb6 {[%clk 0:02:56.2]} 7.
Nb3 {[%clk 0:02:41.5]} 7... h6 {[%clk 0:02:54.6]} 8. Bxf6 {[%clk 0:02:41]} 8...
gxf6 {[%clk 0:02:54.3]} 9. Nd5 {[%clk 0:02:38.9]} 9... Qd8 {[%clk 0:02:51.8]}
10. g3 {[%clk 0:02:36.3]} 10... e6 {[%clk 0:02:51.9]} 11. Ne3 {[%clk 0:02:32.6]}
11... Be7 {[%clk 0:02:52.1]} 12. Qh5 {[%clk 0:02:32.2]} 12... Bd7 {[%clk
0:02:48.3]} 13. O-O-O {[%clk 0:02:26.9]} 13... a5 {[%clk 0:02:47.6]} 14. Nd4
{[%clk 0:02:26.5]} 14... Nxd4 {[%clk 0:02:42.2]} 15. Rxd4 {[%clk 0:02:26.5]}
15... a4 {[%clk 0:02:43.1]} 16. Nc4 {[%clk 0:02:25.1]} 16... Qc7 {[%clk
0:02:41]} 17. Be2 {[%clk 0:02:11.9]} 17... b5 {[%clk 0:02:41]} 18. Na3 {[%clk
0:02:10.1]} 18... Rb8 {[%clk 0:02:29.5]} 19. Bxb5 {[%clk 0:02:04.1]} 19... Bxb5
{[%clk 0:02:19.4]} 20. Nxb5 {[%clk 0:02:03.3]} 20... Qb6 {[%clk 0:02:19.8]} 21.
Rb4 {[%clk 0:01:09]} 21... d5 {[%clk 0:02:15.5]} 22. exd5 {[%clk 0:00:41.5]}
22... Bxb4 {[%clk 0:02:13.7]} 23. dxe6 {[%clk 0:00:41.6]} 23... O-O {[%clk
0:01:58]} 24. Qg4+ {[%clk 0:00:13.3]} 24... Kh8 {[%clk 0:01:56.5]} 25. Qxb4
{[%clk 0:00:02.6]} 25... Qxb5 {[%clk 0:01:55.8]} 26. Qd4 {[%clk 0:00:01.5]}
26... Qe5 {[%clk 0:01:55.4]} 27. Qxe5 {[%clk 0:00:01.5]} 27... fxe5 {[%clk
0:01:56.3]} 28. Re1 {[%clk 0:00:01.2]} 28... fxe6 {[%clk 0:01:51.1]} 29. Rxe5
{[%clk 0:00:01.1]} 29... Rb6 {[%clk 0:01:48.5]} 30. f4 {[%clk 0:00:01.1]} 30...
Kg7 {[%clk 0:01:48.4]} 31. b3 {[%clk 0:00:01.6]} 31... axb3 {[%clk 0:01:47.1]}
32. axb3 {[%clk 0:00:02.5]} 32... Rd8 {[%clk 0:01:46.3]} 33. Re2 {[%clk
0:00:01.5]} 33... Rd5 {[%clk 0:01:46.1]} 34. Kb2 {[%clk 0:00:01.8]} 34... Kf6
{[%clk 0:01:46.3]} 35. c4 {[%clk 0:00:02.2]} 35... Rd3 {[%clk 0:01:45.2]} 36.
Kc2 {[%clk 0:00:01.9]} 36... Rdxb3 {[%clk 0:01:44.8]} 37. Re5 {[%clk 0:00:01.6]}
37... Rb2+ {[%clk 0:01:43.9]} 38. Kc3 {[%clk 0:00:02.2]} 38... R6b3+ {[%clk
0:01:44.3]} 39. Kd4 {[%clk 0:00:02]} 39... Rb4 {[%clk 0:01:42.9]} 40. Rh5 {[%clk
0:00:01.7]} 40... Kg6 {[%clk 0:01:40.2]} 41. Re5 {[%clk 0:00:01.2]} 41... Kf7
{[%clk 0:01:40.1]} 42. Rh5 {[%clk 0:00:01.6]} 42... Rc2 {[%clk 0:01:38.4]} 43.
Rc5 {[%clk 0:00:01.6]} 43... Rxh2 {[%clk 0:01:37.4]} 44. f5 {[%clk 0:00:00.6]}
44... exf5 {[%clk 0:01:33.8]} 45. Ke5 {[%clk 0:00:01.2]} 45... Kg6 {[%clk
0:01:32.8]} 46. Kf4 {[%clk 0:00:00.8]} 46... Rf2+ {[%clk 0:01:32.4]} 47. Ke3
{[%clk 0:00:01.1]} 47... Rc2 {[%clk 0:01:33.3]} 48. Rc6+ {[%clk 0:00:00.7]}
48... Kg5 {[%clk 0:01:33.1]} 49. Rc8 {[%clk 0:00:01.6]} 49... Rcxc4 {[%clk
0:01:32.9]} 50. Rg8+ {[%clk 0:00:02.5]} 50... Kf6 {[%clk 0:01:33.2]} 51. Rh8
{[%clk 0:00:02.9]} 51... Kg7 {[%clk 0:01:32.7]} 52. Rd8 {[%clk 0:00:03]} 52...
Rg4 {[%clk 0:01:33.6]} 53. Kf2 {[%clk 0:00:03.2]} 53... Rb3 {[%clk 0:01:33.5]}
54. Rd7+ {[%clk 0:00:03]} 54... Kg6 {[%clk 0:01:34.1]} 55. Rd6+ {[%clk
0:00:03.8]} 55... Kg5 {[%clk 0:01:34.7]} 56. Rd5 {[%clk 0:00:04.7]} 56... Rbxg3
{[%clk 0:01:35.1]} 57. Rd8 {[%clk 0:00:05.3]} 57... Rb3 {[%clk 0:01:33.3]} 58.
Rg8+ {[%clk 0:00:05.8]} 58... Kf4 {[%clk 0:01:33.5]} 59. Rb8 {[%clk 0:00:05.9]}
59... Rxb8 {[%clk 0:01:32.8]} 0-1

[Event "Late-Titled-Tuesday-Blitz-May-14-2024"]
[Site "Chess.com"]
[Date "2024.05.14"]
[Round "10"]
[White "Love7Unicorn"]
[Black "Orest_Vovk"]
[Result "0-1"]
[WhiteElo "2505"]
[BlackElo "2674"]
[TimeControl "180+1"]
[EndTime "15:53:53 PDT"]
[Termination "Orest_Vovk won by resignation"]

1. d4 {[%clk 0:03:00.9]} 1... h6 {[%clk 0:02:56.3]} 2. c4 {[%clk 0:02:51.4]}
2... g5 {[%clk 0:02:55.7]} 3. Nc3 {[%clk 0:02:51.8]} 3... Bg7 {[%clk 0:02:56.1]}
4. h4 {[%clk 0:02:49.1]} 4... c5 {[%clk 0:02:56.5]} 5. d5 {[%clk 0:02:45.6]}
5... Bxc3+ {[%clk 0:02:55.9]} 6. bxc3 {[%clk 0:02:46.5]} 6... Qa5 {[%clk
0:02:54.6]} 7. Bd2 {[%clk 0:02:42.8]} 7... g4 {[%clk 0:02:54.1]} 8. h5 {[%clk
0:02:37.9]} 8... d6 {[%clk 0:02:54.3]} 9. e4 {[%clk 0:02:36]} 9... Nf6 {[%clk
0:02:51.9]} 10. Bd3 {[%clk 0:02:36.3]} 10... Nbd7 {[%clk 0:02:52.2]} 11. Ne2
{[%clk 0:02:31.2]} 11... Ne5 {[%clk 0:02:52.4]} 12. Qc2 {[%clk 0:02:31.5]} 12...
Nxd3+ {[%clk 0:02:51.8]} 13. Qxd3 {[%clk 0:02:31.4]} 13... Qa4 {[%clk
0:02:52.6]} 14. Bf4 {[%clk 0:01:04.5]} 14... Nd7 {[%clk 0:02:51.6]} 15. Rh4
{[%clk 0:00:57.7]} 15... Nb6 {[%clk 0:02:51.1]} 16. e5 {[%clk 0:00:52.1]} 16...
Qxc4 {[%clk 0:02:51.2]} 17. O-O-O {[%clk 0:00:40.8]} 17... Qxd3 {[%clk
0:02:45.9]} 18. Rxd3 {[%clk 0:00:41]} 18... Bf5 {[%clk 0:02:46.1]} 19. Rd1
{[%clk 0:00:37.8]} 19... dxe5 {[%clk 0:02:37.3]} 20. Bxe5 {[%clk 0:00:35.8]}
20... f6 {[%clk 0:02:37.6]} 21. Bc7 {[%clk 0:00:31.9]} 21... Nc4 {[%clk
0:02:33.4]} 22. Ng3 {[%clk 0:00:22]} 22... Bd7 {[%clk 0:02:33.1]} 23. Bf4 {[%clk
0:00:19.7]} 23... O-O-O {[%clk 0:02:27.5]} 24. Rd3 {[%clk 0:00:09.8]} 24... f5
{[%clk 0:02:25.5]} 25. Rh1 {[%clk 0:00:08.5]} 25... e5 {[%clk 0:02:09.3]} 26.
dxe6 {[%clk 0:00:06.8]} 26... Bxe6 {[%clk 0:02:09.8]} 27. Rhd1 {[%clk
0:00:06.4]} 27... Rxd3 {[%clk 0:02:09.3]} 28. Rxd3 {[%clk 0:00:07.3]} 28... b6
{[%clk 0:02:00.5]} 29. Kb1 {[%clk 0:00:04.8]} 29... a5 {[%clk 0:01:50.1]} 30.
Kc1 {[%clk 0:00:04.9]} 30... a4 {[%clk 0:01:50.6]} 31. Kb1 {[%clk 0:00:04.9]}
31... a3 {[%clk 0:01:51]} 32. Rd1 {[%clk 0:00:04]} 32... Bd7 {[%clk 0:01:46]}
33. Bc1 {[%clk 0:00:02.6]} 33... Bc6 {[%clk 0:01:43.7]} 34. Ka1 {[%clk
0:00:01.3]} 34... Bd7 {[%clk 0:01:32.4]} 35. Bf4 {[%clk 0:00:00.7]} 35... Be6
{[%clk 0:01:24.7]} 36. Bc1 {[%clk 0:00:01.3]} 36... Rh7 {[%clk 0:01:19.7]} 37.
Kb1 {[%clk 0:00:01.9]} 37... Bd7 {[%clk 0:01:16.7]} 38. Ka1 {[%clk 0:00:02.2]}
38... b5 {[%clk 0:01:07.6]} 39. Bf4 {[%clk 0:00:02.6]} 39... Kb7 {[%clk
0:01:04.1]} 40. Bc1 {[%clk 0:00:02.7]} 40... Kb6 {[%clk 0:01:01.2]} 41. Bxh6
{[%clk 0:00:02.7]} 41... Rxh6 {[%clk 0:00:56.8]} 42. Rxd7 {[%clk 0:00:03]} 42...
f4 {[%clk 0:00:57.3]} 43. Nf5 {[%clk 0:00:02]} 43... Rxh5 {[%clk 0:00:56.9]} 44.
Kb1 {[%clk 0:00:02.7]} 44... Rxf5 {[%clk 0:00:56.6]} 0-1

[Event "Late-Titled-Tuesday-Blitz-May-14-2024"]
[Site "Chess.com"]
[Date "2024.05.14"]
[Round "10"]
[White "gabduschew"]
[Black "guineo59"]
[Result "1/2-1/2"]
[WhiteElo "2361"]
[BlackElo "2233"]
[TimeControl "180+1"]
[EndTime "15:53:54 PDT"]
[Termination "Game drawn by agreement"]

1. e4 {[%clk 0:03:00.9]} 1... e6 {[%clk 0:02:59.6]} 2. d3 {[%clk 0:02:59.5]}
2... d5 {[%clk 0:02:59.5]} 3. Nd2 {[%clk 0:03:00.4]} 3... Nf6 {[%clk 0:02:59.3]}
4. Ngf3 {[%clk 0:03:00.4]} 4... Nc6 {[%clk 0:02:59.3]} 5. g3 {[%clk 0:03:00.1]}
5... Bc5 {[%clk 0:02:58.6]} 6. Bg2 {[%clk 0:02:59.9]} 6... dxe4 {[%clk
0:02:53.9]} 7. dxe4 {[%clk 0:03:00.8]} 7... O-O {[%clk 0:02:53.8]} 8. Qe2 {[%clk
0:02:58.7]} 8... e5 {[%clk 0:02:52.7]} 9. c3 {[%clk 0:02:58.7]} 9... a5 {[%clk
0:02:52.2]} 10. O-O {[%clk 0:02:59.1]} 10... b6 {[%clk 0:02:52.2]} 11. Nc4
{[%clk 0:02:59.2]} 11... Ba6 {[%clk 0:02:51.8]} 12. b3 {[%clk 0:02:56.2]} 12...
Qe7 {[%clk 0:02:44.6]} 13. Bg5 {[%clk 0:02:53.8]} 13... h6 {[%clk 0:02:42]} 14.
Bxf6 {[%clk 0:02:53.7]} 14... Qxf6 {[%clk 0:02:42.9]} 15. Qc2 {[%clk 0:02:51.9]}
15... b5 {[%clk 0:02:12.8]} 16. Ne3 {[%clk 0:02:47.7]} 16... Bxe3 {[%clk
0:02:09.2]} 17. fxe3 {[%clk 0:02:48.6]} 17... Qe7 {[%clk 0:02:04.6]} 18. Nh4
{[%clk 0:02:44.5]} 18... Qc5 {[%clk 0:02:02.9]} 19. Rfe1 {[%clk 0:02:43.5]}
19... Rad8 {[%clk 0:01:50.5]} 20. Nf5 {[%clk 0:02:42]} 20... Kh7 {[%clk
0:01:38.4]} 21. Rac1 {[%clk 0:02:33.6]} 21... g6 {[%clk 0:01:36.2]} 22. Nh4
{[%clk 0:02:33.2]} 22... Kg7 {[%clk 0:01:33.1]} 23. h3 {[%clk 0:02:01]} 23...
Rd6 {[%clk 0:01:29.1]} 24. Nf3 {[%clk 0:01:52.8]} 24... Rfd8 {[%clk 0:01:26.5]}
25. Kh2 {[%clk 0:01:48.8]} 25... Bc8 {[%clk 0:01:14]} 26. c4 {[%clk 0:01:42.8]}
26... b4 {[%clk 0:01:07.3]} 27. Rcd1 {[%clk 0:01:28.1]} 27... Be6 {[%clk
0:01:07]} 28. Rxd6 {[%clk 0:01:26]} 28... Qxd6 {[%clk 0:01:06.7]} 29. Re2 {[%clk
0:01:22.5]} 29... Rd7 {[%clk 0:00:59]} 30. Rd2 {[%clk 0:01:21.9]} 30... Qe7
{[%clk 0:00:55.9]} 31. Rxd7 {[%clk 0:01:21.3]} 31... Qxd7 {[%clk 0:00:55.6]} 32.
Qd2 {[%clk 0:01:14.2]} 32... Qxd2 {[%clk 0:00:51.7]} 33. Nxd2 {[%clk 0:01:15.1]}
33... Nd8 {[%clk 0:00:50.6]} 34. Bf1 {[%clk 0:01:04.2]} 34... Nb7 {[%clk
0:00:50.3]} 35. Kg2 {[%clk 0:01:01.6]} 35... Nc5 {[%clk 0:00:45.6]} 36. g4
{[%clk 0:01:00.8]} 36... Kf6 {[%clk 0:00:23.7]} 37. Kf3 {[%clk 0:00:57.4]} 37...
Kg5 {[%clk 0:00:23.5]} 38. Kg3 {[%clk 0:00:55.5]} 38... h5 {[%clk 0:00:20.4]}
39. h4+ {[%clk 0:00:54.6]} 39... Kf6 {[%clk 0:00:20.7]} 40. g5+ {[%clk 0:00:55]}
40... Ke7 {[%clk 0:00:21]} 41. Be2 {[%clk 0:00:50.6]} 41... Kd6 {[%clk
0:00:21.9]} 42. Kf2 {[%clk 0:00:41.9]} 1/2-1/2

[Event "Late-Titled-Tuesday-Blitz-May-14-2024"]
[Site "Chess.com"]
[Date "2024.05.14"]
[Round "10"]
[White "nindjaxx8"]
[Black "Pitomina"]
[Result "0-1"]
[WhiteElo "2639"]
[BlackElo "2547"]
[TimeControl "180+1"]
[EndTime "15:53:56 PDT"]
[Termination "Pitomina won by resignation"]

1. d4 {[%clk 0:02:55]} 1... Nf6 {[%clk 0:02:58.1]} 2. c4 {[%clk 0:02:54.8]} 2...
e5 {[%clk 0:02:55]} 3. dxe5 {[%clk 0:02:52.6]} 3... Ng4 {[%clk 0:02:51.6]} 4.
Bf4 {[%clk 0:02:48.3]} 4... Nc6 {[%clk 0:02:48]} 5. Nf3 {[%clk 0:02:47.4]} 5...
Bb4+ {[%clk 0:02:45.9]} 6. Nc3 {[%clk 0:02:44.2]} 6... Qe7 {[%clk 0:02:46.8]} 7.
Qd5 {[%clk 0:02:42.9]} 7... Bxc3+ {[%clk 0:02:27.3]} 8. bxc3 {[%clk 0:02:41.2]}
8... Qa3 {[%clk 0:02:28.2]} 9. Rc1 {[%clk 0:02:24.5]} 9... f6 {[%clk 0:02:26.8]}
10. exf6 {[%clk 0:02:08.9]} 10... Nxf6 {[%clk 0:02:27.3]} 11. Qd3 {[%clk
0:02:02]} 11... O-O {[%clk 0:02:18.4]} 12. g3 {[%clk 0:02:00.4]} 12... d6 {[%clk
0:02:03.4]} 13. Bg2 {[%clk 0:01:56.9]} 13... Be6 {[%clk 0:02:01.3]} 14. O-O
{[%clk 0:01:54]} 14... Qxa2 {[%clk 0:02:00.9]} 15. Nd2 {[%clk 0:01:46.4]} 15...
Qa3 {[%clk 0:01:40.5]} 16. Be3 {[%clk 0:01:24.3]} 16... Ne5 {[%clk 0:01:35.6]}
17. Qc2 {[%clk 0:01:08.8]} 17... Nxc4 {[%clk 0:01:28.3]} 18. Nxc4 {[%clk
0:01:07.8]} 18... Bxc4 {[%clk 0:01:29.2]} 19. Ra1 {[%clk 0:01:07.6]} 19... Qb3
{[%clk 0:01:28.2]} 20. Qd2 {[%clk 0:01:08.1]} 20... Bd5 {[%clk 0:01:24.5]} 21.
Bh3 {[%clk 0:00:27.5]} 21... Qc4 {[%clk 0:01:19.8]} 22. Rfd1 {[%clk 0:00:21.2]}
22... b6 {[%clk 0:01:18.4]} 23. Rab1 {[%clk 0:00:18.8]} 23... a5 {[%clk
0:01:17.3]} 24. Bf5 {[%clk 0:00:15.6]} 24... Be4 {[%clk 0:01:15.8]} 25. Bxe4
{[%clk 0:00:12.8]} 25... Nxe4 {[%clk 0:01:16.5]} 26. Qc2 {[%clk 0:00:03.7]}
26... Nxc3 {[%clk 0:01:15.6]} 27. Re1 {[%clk 0:00:04.2]} 27... b5 {[%clk
0:01:14.8]} 28. Rbc1 {[%clk 0:00:04.3]} 28... b4 {[%clk 0:01:15.1]} 29. Bd2
{[%clk 0:00:04.1]} 29... Nxe2+ {[%clk 0:01:12.9]} 30. Kg2 {[%clk 0:00:02.1]}
30... Qd5+ {[%clk 0:01:11.5]} 31. Kf1 {[%clk 0:00:02.5]} 31... Nd4 {[%clk
0:01:11]} 32. Qe4 {[%clk 0:00:01.9]} 32... Qxe4 {[%clk 0:01:09.3]} 33. Rxe4
{[%clk 0:00:02.8]} 33... Nb3 {[%clk 0:01:07.6]} 34. Rc2 {[%clk 0:00:02]} 34...
Rae8 {[%clk 0:01:06.9]} 35. Rg4 {[%clk 0:00:01.6]} 35... Rf3 {[%clk 0:01:01.8]}
36. Be3 {[%clk 0:00:01.8]} 36... c5 {[%clk 0:00:58.4]} 37. Rd2 {[%clk
0:00:01.8]} 37... Rexe3 {[%clk 0:00:57]} 38. Rxd6 {[%clk 0:00:02.1]} 38... Re7
{[%clk 0:00:52.8]} 39. Rd8+ {[%clk 0:00:02.4]} 39... Rf8 {[%clk 0:00:53.1]} 40.
Rd6 {[%clk 0:00:02.9]} 40... Ref7 {[%clk 0:00:53.3]} 41. f4 {[%clk 0:00:02.4]}
41... a4 {[%clk 0:00:53.7]} 42. Ra6 {[%clk 0:00:02.4]} 42... a3 {[%clk
0:00:54.1]} 43. Rg5 {[%clk 0:00:02.8]} 43... Rf5 {[%clk 0:00:53.1]} 44. Rg4
{[%clk 0:00:02.9]} 44... g6 {[%clk 0:00:53.4]} 45. h4 {[%clk 0:00:03]} 45...
R8f6 {[%clk 0:00:52.8]} 46. h5 {[%clk 0:00:03.6]} 0-1

[Event "Late-Titled-Tuesday-Blitz-May-14-2024"]
[Site "Chess.com"]
[Date "2024.05.14"]
[Round "10"]
[White "Sanan_Sjugirov"]
[Black "IlyaGrigorjev"]
[Result "1-0"]
[WhiteElo "3034"]
[BlackElo "2863"]
[TimeControl "180+1"]
[EndTime "15:54:02 PDT"]
[Termination "Sanan_Sjugirov won on time"]

1. e4 {[%clk 0:03:00.9]} 1... e5 {[%clk 0:02:59.9]} 2. Nf3 {[%clk 0:03:00.7]}
2... Nc6 {[%clk 0:03:00.5]} 3. Bb5 {[%clk 0:03:01.2]} 3... a6 {[%clk 0:03:00.8]}
4. Ba4 {[%clk 0:03:01.6]} 4... Nge7 {[%clk 0:03:01.3]} 5. O-O {[%clk 0:02:59.2]}
5... Ng6 {[%clk 0:03:01.2]} 6. d4 {[%clk 0:02:57.3]} 6... exd4 {[%clk
0:03:02.1]} 7. Nxd4 {[%clk 0:02:57]} 7... Nxd4 {[%clk 0:03:03]} 8. Qxd4 {[%clk
0:02:57]} 8... b5 {[%clk 0:03:03.9]} 9. Bb3 {[%clk 0:02:57]} 9... Bb7 {[%clk
0:03:04.6]} 10. Qd3 {[%clk 0:02:53.3]} 10... Bd6 {[%clk 0:02:57.4]} 11. Nc3
{[%clk 0:02:49.6]} 11... O-O {[%clk 0:02:55.4]} 12. f4 {[%clk 0:02:44.7]} 12...
Bc5+ {[%clk 0:02:38.5]} 13. Be3 {[%clk 0:02:41.7]} 13... Bxe3+ {[%clk
0:02:22.1]} 14. Qxe3 {[%clk 0:02:42.6]} 14... Qe7 {[%clk 0:02:22.5]} 15. Nd5
{[%clk 0:02:26.6]} 15... Bxd5 {[%clk 0:02:13.8]} 16. Bxd5 {[%clk 0:02:27.5]}
16... Rae8 {[%clk 0:02:04.3]} 17. Rae1 {[%clk 0:02:25.7]} 17... Kh8 {[%clk
0:01:58.9]} 18. Bb3 {[%clk 0:01:59.2]} 18... f5 {[%clk 0:01:45.6]} 19. e5 {[%clk
0:01:58.7]} 19... d6 {[%clk 0:01:45.6]} 20. e6 {[%clk 0:01:57.1]} 20... Qf6
{[%clk 0:01:24.5]} 21. Qa7 {[%clk 0:01:52.4]} 21... Re7 {[%clk 0:01:18.2]} 22.
c3 {[%clk 0:01:49.3]} 22... c5 {[%clk 0:00:59.7]} 23. Qxa6 {[%clk 0:01:48.5]}
23... c4 {[%clk 0:01:00.4]} 24. Bc2 {[%clk 0:01:47.7]} 24... Rxe6 {[%clk
0:01:01.1]} 25. g3 {[%clk 0:01:28]} 25... Rfe8 {[%clk 0:00:45.9]} 26. Rxe6
{[%clk 0:01:27.2]} 26... Qxe6 {[%clk 0:00:46.8]} 27. Qxb5 {[%clk 0:01:26.6]}
27... Qe3+ {[%clk 0:00:38.3]} 28. Kg2 {[%clk 0:01:19.6]} 28... Qe2+ {[%clk
0:00:33.7]} 29. Kg1 {[%clk 0:01:10.8]} 29... Qe3+ {[%clk 0:00:34]} 30. Rf2
{[%clk 0:01:04.7]} 30... d5 {[%clk 0:00:08.1]} 31. Qxd5 {[%clk 0:00:59.7]} 31...
Qc1+ {[%clk 0:00:05.6]} 32. Kg2 {[%clk 0:00:57.5]} 32... Qxb2 {[%clk 0:00:06.4]}
33. Ba4 {[%clk 0:00:48.9]} 33... Qb8 {[%clk 0:00:01.6]} 34. Bxe8 {[%clk
0:00:48.3]} 34... Qxe8 {[%clk 0:00:02.5]} 35. Rd2 {[%clk 0:00:46.6]} 35... Nf8
{[%clk 0:00:01.3]} 36. Qxf5 {[%clk 0:00:40.6]} 36... h6 {[%clk 0:00:01.1]} 37.
Qd5 {[%clk 0:00:38.2]} 37... Ng6 {[%clk 0:00:00.8]} 38. Qd8 {[%clk 0:00:38.1]}
1-0

[Event "Late-Titled-Tuesday-Blitz-May-14-2024"]
[Site "Chess.com"]
[Date "2024.05.14"]
[Round "10"]
[White "Grischuk"]
[Black "Mikayel99"]
[Result "1-0"]
[WhiteElo "3108"]
[BlackElo "2649"]
[TimeControl "180+1"]
[EndTime "15:54:06 PDT"]
[Termination "Grischuk won on time"]

1. d4 {[%clk 0:03:00.9]} 1... Nf6 {[%clk 0:02:59.2]} 2. c4 {[%clk 0:03:01.4]}
2... e6 {[%clk 0:02:57.5]} 3. Bg5 {[%clk 0:03:01.9]} 3... h6 {[%clk 0:02:51.2]}
4. Bh4 {[%clk 0:03:01.7]} 4... c5 {[%clk 0:02:43.8]} 5. d5 {[%clk 0:03:01.1]}
5... Qa5+ {[%clk 0:02:38.4]} 6. Nc3 {[%clk 0:02:45]} 6... Ne4 {[%clk 0:02:18.9]}
7. Qc2 {[%clk 0:02:36.8]} 7... Nxc3 {[%clk 0:02:17.6]} 8. bxc3 {[%clk
0:02:37.7]} 8... d6 {[%clk 0:02:01]} 9. e3 {[%clk 0:02:30.8]} 9... Bd7 {[%clk
0:01:26.4]} 10. Bd3 {[%clk 0:02:26.3]} 10... Ba4 {[%clk 0:01:21.2]} 11. Qb2
{[%clk 0:02:24.6]} 11... Qb6 {[%clk 0:01:21.2]} 12. Qd2 {[%clk 0:02:15.2]} 12...
g5 {[%clk 0:01:19.1]} 13. Bg3 {[%clk 0:02:14.9]} 13... Bg7 {[%clk 0:01:19]} 14.
h4 {[%clk 0:02:06.4]} 14... Nd7 {[%clk 0:01:13.1]} 15. Rb1 {[%clk 0:02:05]}
15... Qa6 {[%clk 0:01:03]} 16. dxe6 {[%clk 0:01:32]} 16... fxe6 {[%clk
0:01:02.2]} 17. Bg6+ {[%clk 0:01:26.9]} 17... Ke7 {[%clk 0:00:58.8]} 18. Ne2
{[%clk 0:01:11.3]} 18... Ne5 {[%clk 0:00:53.6]} 19. Bxe5 {[%clk 0:01:06]} 19...
Bxe5 {[%clk 0:00:54.5]} 20. Be4 {[%clk 0:01:06.4]} 20... Bc6 {[%clk 0:00:54.6]}
21. Qc2 {[%clk 0:00:53]} 21... Raf8 {[%clk 0:00:27.4]} 22. h5 {[%clk 0:00:44.6]}
22... Kd7 {[%clk 0:00:26]} 23. Bxc6+ {[%clk 0:00:36.5]} 23... Qxc6 {[%clk
0:00:25.7]} 24. O-O {[%clk 0:00:37]} 24... Rf6 {[%clk 0:00:20.6]} 25. Qd3 {[%clk
0:00:34.8]} 25... b6 {[%clk 0:00:17.8]} 26. a4 {[%clk 0:00:33.4]} 26... a5
{[%clk 0:00:16.7]} 27. f4 {[%clk 0:00:30]} 27... gxf4 {[%clk 0:00:14.6]} 28.
exf4 {[%clk 0:00:30.5]} 28... Rf5 {[%clk 0:00:06.9]} 29. fxe5 {[%clk 0:00:28.7]}
29... Rg8 {[%clk 0:00:07.5]} 30. g3 {[%clk 0:00:21.9]} 30... Rgg5 {[%clk
0:00:02]} 31. Rxf5 {[%clk 0:00:21.7]} 31... Rxf5 {[%clk 0:00:01.8]} 32. Rf1
{[%clk 0:00:16.9]} 32... Rxf1+ {[%clk 0:00:01.7]} 33. Kxf1 {[%clk 0:00:17.6]}
33... Qh1+ {[%clk 0:00:01.5]} 34. Kf2 {[%clk 0:00:18.1]} 1-0